Cogmind - Beta 15 @@@ ROGUE MODE // 2025.08.22 @ 02:39:07 Player: H3-RMN Result: Destroyed by Executioner with Helical Railgun Performance ------------- Evolutions (9) 4500 Regions Visited (32) 6400 Robots Destroyed (182) 910 Value Destroyed (4814) 4814 Prototype IDs (67) 1340 Alien Tech Used (0) 0 Bonus (5560) 5560 TOTAL SCORE: 23524 Bonus ------- High Alert Combat Kills 129 Follower Combat Kills 431 Entered Garrisons 1200 Used RIF Installer 1500 Entered DSFs 2000 Aligned with FarCom 300 Cogmind --------- Core Integrity 0/1600 Matter 300/300 Energy 50/100 System Corruption 7% Temperature Cool (0) Movement Core (50) Location -1/Command Parts ------- > --- POWER (2) -------- (None) > --- PROPULSION (7) --- (None) > --- UTILITY (12) ----- Experimental Core Analyzer Graphene Brace > --- WEAPON (4) ------- (None) > --- INVENTORY (5) ---- Field Propulsion Array Guided Plasma Cannon Vibroblade Peak State ------------ > --- POWER ------------ Micro Nuclear Core Improved Quantum Reactor > --- PROPULSION ------- Cooled VTOL Module Field Propulsion Array Impulse Thruster Array Impulse Thruster Array > --- UTILITY ---------- Large Storage Unit Advanced Weight Redist. System Improved Melee Analysis Suite Improved Melee Analysis Suite Experimental Core Analyzer Advanced Transmission Jammer Advanced Reaction Control System Backup Plating VII Graphene Brace Improved Hacking Suite Advanced Hacking Suite Improved System Shield > --- WEAPON ----------- Guided Plasma Cannon Enhanced Force Lance > --- INVENTORY -------- Backup Power VII Backup Power VII Combat Linear Gravjet Field Propulsion Array Femtoactuators Advanced Actuator Array Advanced Actuator Array Advanced Force Booster Advanced Force Booster Advanced Powered Armor Heavy Shock Bomb Launcher Vibroblade [Rating: 157] Favorites ----------- Power Cooled Ion Engine Engine Cooled Ion Engine Power Core Micro Nuclear Core Reactor Improved Quantum Reactor Propulsion Improved Treads Treads Improved Treads Wheel Compact Wheel Hover Unit Combat Airjet Flight Unit Improved VTOL Module Utility Hacking Suite Device Shield Generator Storage Large Storage Unit Processor Transport Network Coupler Hackware Hacking Suite Protection Medium Armor Plating Weapon Improved Assault Rifle Energy Gun Salvaging Laser Energy Cannon Advanced Beam Cannon Ballistic Gun Improved Assault Rifle Ballistic Cannon Hardcell Cannon Launcher Rocket Launcher Special Weapon Improved Remote Datajack Slashing Weapon Katana Piercing Weapon Makeshift Spear Special Melee Weapon Improved Datajack Build | -11 -10 -10 -9 -9 -9 -8 -8 -8 -8 -8 -8 -8 -7 -7 -6 -6 -6 -6 -5 -5 -5 -5 -4 -4 -4 -4 -3 -3 -2 -2 -1 -1 ------- Run | Yrd Mat Min Mat Min Exi Min Mat Gar Mat Gar Mat Gar Fac DSF Fac Was Fac DSF Fac Gar Fac Gar Fac Was Fac DSF Res Gar Res DSF Acc Com Slots Evolved 18 | . . . 2 . . . 2 . . . . . 2 . 2 . . . 2 . . . 2 . . . 2 . 2 . 2 . Power 1 | . . . . . . . . . . . . . . . . . . . 1 . . . . . . . . . . . . . Propulsion 5 | . . . 1 . . . 1 . . . . . . . . . . . 1 . . . . . . . . . 1 . 1 . Utility 10 | . . . 1 . . . . . . . . . 2 . 2 . . . . . . . 2 . . . 2 . 1 . . . Weapon 2 | . . . . . . . 1 . . . . . . . . . . . . . . . . . . . . . . . 1 . Parts Attached 178 | 7 9 3 23 12 . 3 38 1 2 1 . . 2 . 2 . 5 1 8 3 8 3 11 1 . 4 1 . 6 2 10 12 Power 22 | 1 1 1 2 . . . 6 . 2 . . . . . . . 1 . 1 . 2 1 . . . . . . 1 . 2 1 Engine 13 | 1 1 . 2 . . . 6 . 2 . . . . . . . . . 1 . . . . . . . . . . . . . Core 5 | . . 1 . . . . . . . . . . . . . . 1 . . . 2 1 . . . . . . . . . . Reactor 4 | . . . . . . . . . . . . . . . . . . . . . . . . . . . . . 1 . 2 1 Propulsion 45 | 2 3 . 6 2 . 1 16 . . . . . . . . . 1 . 2 2 1 . 2 . . 1 . . 2 1 2 1 Treads 12 | . 3 . 3 2 . . 4 . . . . . . . . . . . . . . . . . . . . . . . . . Leg . | . . . . . . . . . . . . . . . . . . . . . . . . . . . . . . . . . Wheel 11 | 2 . . 3 . . 1 5 . . . . . . . . . . . . . . . . . . . . . . . . . Hover 2 | . . . . . . . 2 . . . . . . . . . . . . . . . . . . . . . . . . . Flight 20 | . . . . . . . 5 . . . . . . . . . 1 . 2 2 1 . 2 . . 1 . . 2 1 2 1 Utility 70 | 2 4 . 6 4 . . 8 . . 1 . . 2 . 2 . 1 1 4 1 5 2 6 . . 3 1 . 3 . 5 9 Device 25 | 1 2 . 3 2 . . 3 . . 1 . . . . . . . 1 1 . 2 1 2 . . . . . . . 1 5 Storage 7 | 1 2 . 1 . . . 1 . . . . . . . . . . . . . 1 . . . . 1 . . . . . . Processor 8 | . . . . . . . 1 . . . . . 1 . . . . . . . 1 . 1 . . . . . 1 . . 3 Hackware 19 | . . . . . . . . . . . . . 1 . 2 . 1 . 3 1 1 1 3 . . . 1 . 2 . 3 . Protection 11 | . . . 2 2 . . 3 . . . . . . . . . . . . . . . . . . 2 . . . . 1 1 Artifact . | . . . . . . . . . . . . . . . . . . . . . . . . . . . . . . . . . Weapon 41 | 2 1 2 9 6 . 2 8 1 . . . . . . . . 2 . 1 . . . 3 1 . . . . . 1 1 1 Energy Gun 7 | . 1 1 2 . . 1 2 . . . . . . . . . . . . . . . . . . . . . . . . . Energy Cannon 4 | . . . 1 . . . . 1 . . . . . . . . 1 . 1 . . . . . . . . . . . . . Ballistic Gun 10 | 2 . . 3 2 . 1 2 . . . . . . . . . . . . . . . . . . . . . . . . . Ballistic Cannon 1 | . . . . . . . . . . . . . . . . . . . . . . . 1 . . . . . . . . . Launcher 8 | . . 1 . 4 . . 2 . . . . . . . . . . . . . . . . . . . . . . . . 1 Special Weapon 1 | . . . . . . . . . . . . . . . . . . . . . . . 1 . . . . . . . . . Impact Weapon . | . . . . . . . . . . . . . . . . . . . . . . . . . . . . . . . . . Slashing Weapon 6 | . . . 2 . . . . . . . . . . . . . 1 . . . . . 1 1 . . . . . . 1 . Piercing Weapon 2 | . . . . . . . 1 . . . . . . . . . . . . . . . . . . . . . . 1 . . Special Melee Weapon 2 | . . . 1 . . . 1 . . . . . . . . . . . . . . . . . . . . . . . . . Unidentified Prototypes 13 | . . . 4 . . . 4 . . . . . . . . . . . 1 . 1 . 2 . . 1 . . . . . . Parts Lost 47 | . 1 2 1 3 . 1 3 3 . . . . . . . . . . . . 1 1 3 . . . . 1 . 6 2 19 Power 11 | . . 1 1 . . . 2 1 . . . . . . . . . . . . 1 . 1 . . . . . . 1 . 3 Propulsion 10 | . . . . 1 . . 1 1 . . . . . . . . . . . . . 1 . . . . . . . . 1 5 Utility 18 | . 1 . . 2 . 1 . . . . . . . . . . . . . . . . 1 . . . . . . 2 1 10 Weapon 8 | . . 1 . . . . . 1 . . . . . . . . . . . . . . 1 . . . . 1 . 3 . 1 Highest Loss Streak 16 | . 1 2 1 2 . 1 1 3 . . . . . . . . . . . . 1 1 2 . . . . 1 . 6 2 16 To Critical Strikes . | . . . . . . . . . . . . . . . . . . . . . . . . . . . . . . . . . Average Backups 17 | 2 11 14 16 24 25 24 23 13 14 14 15 15 14 13 12 13 14 14 14 14 14 14 14 14 15 14 12 12 13 13 12 8 Power . | . 1 1 . 1 1 1 . . . 1 1 1 1 1 1 1 1 1 . . . . . . . . . . . . . . Propulsion 2 | 1 2 2 1 3 3 3 4 2 2 3 3 3 3 3 3 3 3 4 3 4 4 3 3 3 3 3 3 3 2 2 1 1 Utility 7 | . 2 4 4 9 10 9 9 8 8 8 8 8 7 6 5 5 6 6 8 9 8 9 9 9 9 9 7 7 8 10 9 4 Weapon 5 | . 3 5 7 10 10 10 7 2 1 1 2 2 2 2 2 3 2 2 2 1 2 2 1 2 3 2 2 2 2 1 1 2 Tool/Special . | . . . . . . . . . . . . . . . . . . . . . . . . . . . . . . . . . Unused Backups 50 | . 4 1 14 . 1 . 3 . 2 1 . . . . . 1 1 . 1 3 . . 5 . . 1 . 1 1 . 3 7 Power 5 | . 2 . . . . . . . 1 . . . . . . . . . . . . . . . . . . . . . . 2 Propulsion 10 | . 1 . 1 . . . 2 . . . . . . . . . . . 1 1 . . 2 . . . . . . . . 2 Utility 19 | . 1 . 1 . 1 . 1 . 1 1 . . . . . . 1 . . 2 . . 2 . . . . 1 1 . 3 3 Weapon 16 | . . 1 12 . . . . . . . . . . . . 1 . . . . . . 1 . . 1 . . . . . . Tool/Special . | . . . . . . . . . . . . . . . . . . . . . . . . . . . . . . . . . Average Slot Usage (%) 93 | . 99 99 99 99 100 99 96 79 72 78 72 72 69 76 79 80 84 86 85 91 87 87 87 79 84 88 88 88 85 84 77 71 Engine 6 | . 14 4 6 11 11 11 8 8 8 9 9 9 7 7 6 6 . . 4 5 3 . . . 4 5 4 4 . . . . Core 3 | . . 9 4 . . . . . . . . . . . . . 5 6 5 5 6 11 9 5 5 5 4 4 4 4 3 3 Treads 14 | . 19 28 29 19 22 22 15 . . . . . . . . . . . . . . . . . . . . . . . . . Wheel 5 | . 8 . 3 13 11 11 14 . . . . . . . . . . . . . . . . . . . . . . . . . Flight 8 | . . . . . . . 4 36 36 36 36 36 30 30 26 26 26 26 24 21 17 17 15 15 11 15 14 14 16 17 19 15 Device 9 | . 14 14 11 11 11 1 5 9 9 9 9 9 7 7 6 6 6 6 3 4 4 5 8 7 10 11 12 17 13 12 11 20 Storage 9 | . 14 14 11 11 11 11 9 9 9 9 9 9 7 7 6 6 6 6 5 5 5 5 5 5 5 5 4 4 4 4 4 2 Processor 3 | . . . . . . . . 9 9 9 9 9 15 15 13 13 13 13 11 11 7 8 9 10 10 10 9 9 8 5 4 8 Hackware 5 | . . . . . . . . . . . . . . 7 18 20 20 20 17 17 20 19 22 21 21 14 14 14 20 21 23 9 Protection 7 | . . . 11 10 11 20 10 . . . . . . . . . . . . . . . . . . 3 9 5 4 6 4 3 Energy Gun 3 | . 10 12 3 . . . 7 . . . . . . . . . . . . . . . . . . . . . . . . . Energy Cannon 1 | . . . 6 . . . . . . . . . . . . . . . . 5 5 5 2 . . . . . . . . . Ballistic Gun 8 | . 17 14 10 11 12 15 16 . . . . . . . . . . . . . . . . . . . . . . . . . Slashing Weapon 1 | . . . 1 8 . . . . . . . . . . . . . . . . . . . 4 5 5 4 4 4 3 . . Piercing Weapon 1 | . . . . . . . . 7 1 6 . . . . 1 . 4 6 4 3 5 5 5 5 5 5 4 4 4 3 4 3 Special Melee Weapon 1 | . . . . . 8 . . . . . . . . . . . . . 2 5 5 5 4 . . . . . . . . . Peak Build Rating 157 | 7 13 16 25 25 22 22 44 40 32 32 28 28 32 32 41 39 52 50 67 75 80 80 93 91 92 106 113 113 127 131 147 157 Average Rating 42 | 5 9 14 22 22 21 21 31 32 28 30 28 28 31 32 37 38 45 47 56 68 75 79 87 87 80 96 111 108 123 126 134 143 On Entrance 54 | . 7 12 16 23 22 22 22 29 25 32 28 28 28 32 32 38 39 47 48 64 75 80 80 77 91 89 106 113 104 127 112 137 Naked Turns . | . . . . . . . . . . . . . . . . . . . . . . . . . . . . . . . . . Heaviest Build 110 | 14 32 37 100 103 104 105 110 29 30 32 28 28 28 28 28 28 29 33 37 39 43 46 43 38 39 45 46 47 46 49 57 69 Greatest Support 69 | 32 46 46 69 32 16 16 32 29 29 29 29 29 29 29 29 29 29 31 37 43 43 43 47 45 45 47 47 50 52 52 64 63 Greatest Overweight (x) 10 | . 1 . 3 6 6 6 10 1 1 1 . . . . . . . 1 . . 1 1 1 . . . . . . . . 1 Average Overweight (x) 1 | . . . . 5 6 6 3 . . . . . . . . . . . . . . . . . . . . . . . . . Largest Inventory Capacity 25 | 8 15 15 25 25 25 25 25 15 15 15 15 15 15 15 15 15 15 15 15 15 15 15 15 15 15 15 15 15 15 15 15 15 Average Capacity 18 | 7 12 15 18 25 25 25 23 15 15 15 15 15 15 15 15 15 15 15 15 15 15 15 15 15 15 15 15 15 15 15 15 10 Most Carried 25 | 4 15 15 25 25 25 25 25 15 15 15 15 15 14 14 13 15 15 15 15 15 15 15 15 15 15 15 14 14 15 15 15 15 Average Carried 18 | 2 11 14 16 24 24 24 23 13 14 14 15 14 13 13 12 13 14 14 14 14 14 14 14 14 15 14 13 13 14 14 14 10 Final Capacity 25 | 8 15 15 25 25 25 25 15 15 15 15 15 15 15 15 15 15 15 15 15 15 15 15 15 15 15 15 15 15 15 15 15 5 Final Carried 25 | 4 14 15 25 25 25 25 15 13 14 15 15 15 13 14 13 15 15 15 15 15 15 15 15 15 15 15 13 14 15 15 15 4 Class Distribution -------------------- 40% | Mutant 12% | Scavenger-Mutant 8% | Hacker-Mutant 7% | Hacker-Scout 6% | Scavenger-Skirmisher 5% | Hacker-Ninja 3% | Wizard-Ninja Dominant Class ---------------- Mutant | -10/Materials Mutant | -10/Mines Mutant | -9/Materials Mutant | -9/Mines Mutant | -9/Exiles Scavenger-Mutant | -8/Mines Scavenger-Skirmisher | -8/Materials Sprinter | -8/Garrison Mutant | -8/Materials Trapper-Mutant | -8/Garrison Trapper-Mutant | -8/Materials Trapper-Sprinter | -8/Garrison Trapper-Sprinter | -7/Factory Trapper-Scout | -7/DSF Hacker-Scout | -6/Factory Hacker-Scout | -6/Waste Hacker-Scout | -6/Factory Hacker-Scout | -6/DSF Hacker-Scout | -5/Factory Hacker-Scout | -5/Garrison Hacker-Mutant | -5/Factory Hacker-Mutant | -5/Garrison Hacker-Mutant | -4/Factory Hacker-Mutant | -4/Waste Hacker-Assassin | -4/Factory Hacker-Mutant | -4/DSF Hacker-Ninja | -3/Research Hacker-Ninja | -3/Garrison Hacker-Ninja | -2/Research Hacker-Ninja | -2/DSF Wizard-Ninja | -1/Access Scavenger-Sprinter | -1/Command Resources | -11 -10 -10 -9 -9 -9 -8 -8 -8 -8 -8 -8 -8 -7 -7 -6 -6 -6 -6 -5 -5 -5 -5 -4 -4 -4 -4 -3 -3 -2 -2 -1 -1 ----------- Run | Yrd Mat Min Mat Min Exi Min Mat Gar Mat Gar Mat Gar Fac DSF Fac Was Fac DSF Fac Gar Fac Gar Fac Was Fac DSF Res Gar Res DSF Acc Com Matter Collected 5204 | 294 242 348 773 388 30 146 1418 10 55 40 . 70 . . 40 . 90 . 171 12 221 25 102 . . 187 . 110 60 16 124 232 Remotely 126 | 24 102 . . . . . . . . . . . . . . . . . . . . . . . . . . . . . . . Salvage Created 7526 | 76 450 156 1939 835 . 263 2300 54 . 40 . . . . . . 180 . . 12 579 . 146 . . . . . 135 . 101 260 Parts 422 | 3 31 14 120 38 . 30 119 5 . 3 . . . . . . 5 . . . 20 . 12 . . . . . 8 . 3 11 Haulers Intercepted 18 | . 1 . 5 . . . 6 . . . . . . . . . 1 . . . 3 . 1 . . . . . 1 . . . Recyclers Shooed 5 | . . . 3 . . 1 1 . . . . . . . . . . . . . . . . . . . . . . . . . Parts Field Recycled . | . . . . . . . . . . . . . . . . . . . . . . . . . . . . . . . . . Retrieved Matter . | . . . . . . . . . . . . . . . . . . . . . . . . . . . . . . . . . Parts Self-Destructed . | . . . . . . . . . . . . . . . . . . . . . . . . . . . . . . . . . Prevented . | . . . . . . . . . . . . . . . . . . . . . . . . . . . . . . . . . Kills | -11 -10 -10 -9 -9 -9 -8 -8 -8 -8 -8 -8 -8 -7 -7 -6 -6 -6 -6 -5 -5 -5 -5 -4 -4 -4 -4 -3 -3 -2 -2 -1 -1 ------- Run | Yrd Mat Min Mat Min Exi Min Mat Gar Mat Gar Mat Gar Fac DSF Fac Was Fac DSF Fac Gar Fac Gar Fac Was Fac DSF Res Gar Res DSF Acc Com Combat Hostiles Destroyed 130 | . 7 26 35 13 . 8 37 . . . . . . . . . 1 . . . 2 . . . . . . . . . . 1 Melee 7 | . . . . 6 . . . . . . . . . . . . . . . . . . . . . . . . . . . 1 Guns 59 | . 7 4 18 1 . . 29 . . . . . . . . . . . . . . . . . . . . . . . . . Cannons 18 | . . . 15 . . . . . . . . . . . . . 1 . . . 2 . . . . . . . . . . . AOE 46 | . . 22 2 6 . 8 8 . . . . . . . . . . . . . . . . . . . . . . . . . Classes Destroyed 18 | 1 5 4 2 3 . . 3 . . . . . . . . . . . . . . . . . . . . . . . . . Worker 6 | . . . . 1 . 1 3 . . . . . . . . . . . . . . . . . . . . . . . 1 . Builder 4 | . . 1 . . . . 1 . . . . . . . . . . . . . . . 2 . . . . . . . . . Tunneler 4 | . . . . 2 . 2 . . . . . . . . . . . . . . . . . . . . . . . . . . Hauler 18 | . 1 . 5 . . . 6 . . . . . . . . . 1 . . . 3 . 1 . . . . . 1 . . . Recycler 16 | 1 . . 4 4 . 2 4 . . . . . . . . . . . . . 1 . . . . . . . . . . . Mechanic 3 | . 1 . 2 . . . . . . . . . . . . . . . . . . . . . . . . . . . . . Operator 6 | . 1 . 3 . . . 1 . . . . . . . . . . . . . . . . . . . . . 1 . . . Watcher 13 | . 1 . 2 . . . 3 . . . . . . . . . . . . . 4 . . . . . . . . . 2 1 Swarmer 35 | . . 6 14 3 . 8 3 . . . . . . . . . . . . . 1 . . . . . . . . . . . Cutter 5 | . . . . . . . 5 . . . . . . . . . . . . . . . . . . . . . . . . . Grunt 43 | . 7 . 13 6 . 1 16 . . . . . . . . . . . . . . . . . . . . . . . . . Brawler 2 | . . . . 1 . . 1 . . . . . . . . . . . . . . . . . . . . . . . . . Duelist 3 | . . . 1 1 . . . . . . . . . . . . . . . . 1 . . . . . . . . . . . Sentry 19 | . . . 7 2 . . 9 . . . . . . . . . 1 . . . . . . . . . . . . . . . Demolisher 1 | . . 1 . . . . . . . . . . . . . . . . . . . . . . . . . . . . . . Specialist 2 | . . . . . . . 2 . . . . . . . . . . . . . . . . . . . . . . . . . Hunter 1 | . . . . . . . 1 . . . . . . . . . . . . . . . . . . . . . . . . . Assembled 19 | . . 19 . . . . . . . . . . . . . . . . . . . . . . . . . . . . . . Thug 1 | . . . . . . . . . . . . . . . . . . . . . . . . . . . . . . . . 1 Best Kill Streak 12 | 1 3 12 6 3 . 5 7 . . . . . . . . . 2 . . . 2 . 2 . . . . . 1 . 1 1 Combat Bots Only 12 | . 2 12 5 3 . 4 4 . . . . . . . . . 1 . . . 2 . . . . . . . . . . 1 Max Kills in Single Turn 3 | 1 1 3 2 3 . 3 2 . . . . . . . . . 1 . . . 1 . 1 . . . . . 1 . 1 1 Gunslinging 1 | . . . 1 . . . 1 . . . . . . . . . . . . . . . . . . . . . . . . . Exploded 3 | . . 3 2 3 . 3 2 . . . . . . . . . . . . . . . . . . . . . . . . . Melee 1 | . . . . 1 . . . . . . . . . . . . . . . . . . . . . . . . . . . 1 Uniques/NPCs Destroyed . | . . . . . . . . . . . . . . . . . . . . . . . . . . . . . . . . . Combat | -11 -10 -10 -9 -9 -9 -8 -8 -8 -8 -8 -8 -8 -7 -7 -6 -6 -6 -6 -5 -5 -5 -5 -4 -4 -4 -4 -3 -3 -2 -2 -1 -1 -------- Run | Yrd Mat Min Mat Min Exi Min Mat Gar Mat Gar Mat Gar Fac DSF Fac Was Fac DSF Fac Gar Fac Gar Fac Was Fac DSF Res Gar Res DSF Acc Com Hostile Shots Fired 1010 | . 47 31 160 75 . 11 148 46 18 20 . 4 . 5 . . . 11 4 . 6 39 66 1 . 14 . 19 . 48 35 202 Missed 405 | . 13 10 46 27 . 3 48 22 14 13 . 4 . 3 . . . 8 4 . 3 22 32 1 . 6 . 13 . 21 15 77 Hits 605 | . 34 21 114 48 . 8 100 24 4 7 . . . 2 . . . 3 . . 3 17 34 . . 8 . 6 . 27 20 125 Melee 18 | . . 1 6 2 . . 7 . . . . . . . . . . . . . . . . . . 2 . . . . . . Projectile 587 | . 34 20 108 46 . 8 93 24 4 7 . . . 2 . . . 3 . . 3 17 34 . . 6 . 6 . 27 20 125 AOE 8 | . . 4 . . . . 1 . . . . . . . . . . . . . . 1 . . . . . . . 2 . . Critical Strikes 34 | . . . 4 . . . 10 2 . . . . . 1 . . . . . . . . . . . . . . . . 2 15 Actively Blocked 15 | . . . . . . . . . . . . . . . . . . . . . . . . . . . . . . . . 15 Damage Taken 10547 | . 351 315 1022 552 . 132 1561 289 60 106 . . . 98 . . . 55 . . 79 426 628 . . 218 . 135 . 760 686 3074 Core 3045 | . 56 47 135 132 . 16 225 149 31 94 . . . . . . . . . . . 77 290 . . . . 52 . 121 47 1573 Absorbed by Shields 1085 | . 110 118 384 109 . 10 . 54 . . . . . 13 . . . . . . . . . . . . . . . 68 . 219 Ignored by Resistances 54 | . . . . . . . 54 . . . . . . . . . . . . . . . . . . . . . . . . . Regen/Repaired (Parts) 368 | . . . 154 . . . 123 . . . . . . . . . . . . . . . . . 91 . . . . . . . Core Remaining (%) 74 | 100 . 58 . . . 29 . . . . . 9 . 100 . . . 100 . . . 92 . . . 74 . 96 . 91 . . Volleys Fired 406 | 6 48 28 144 13 . 12 114 2 . . . . . . . . 5 . 2 2 4 6 4 . . . . . . . 4 12 Largest 3 | 2 2 2 2 2 . 2 3 1 . . . . . . . . 1 . 1 1 1 1 1 . . . . . . . 1 1 Hottest 120 | 40 50 50 91 66 . 90 114 120 . . . . . . . . 120 . 105 35 35 35 35 . . . . . . . 120 120 Shots Fired 797 | 12 95 39 276 20 . 19 294 2 . . . . . . . . 5 . 2 2 5 6 4 . . . . . . . 4 12 Gun 638 | 12 95 22 206 11 . 14 278 . . . . . . . . . . . . . . . . . . . . . . . . . Cannon 106 | . . . 67 . . . . 1 . . . . . . . . 5 . 2 2 5 6 3 . . . . . . . 4 11 Launcher 52 | . . 17 3 9 . 5 16 1 . . . . . . . . . . . . . . . . . . . . . . . 1 Special 1 | . . . . . . . . . . . . . . . . . . . . . . . 1 . . . . . . . . . Kinetic 451 | 12 56 11 141 11 . 13 207 . . . . . . . . . . . . . . . . . . . . . . . . . Thermal 293 | . 39 11 132 . . 1 71 1 . . . . . . . . 5 . 2 2 5 6 3 . . . . . . . 4 11 Explosive 38 | . . 17 3 5 . 5 7 1 . . . . . . . . . . . . . . . . . . . . . . . . Electromagnetic 14 | . . . . 4 . . 9 . . . . . . . . . . . . . . . . . . . . . . . . 1 Robot Hit Streak 16 | 6 9 6 16 12 . 13 13 . . . . . . . . . . . . . 2 2 3 . . . . . . . . . Robot Miss Streak 7 | 2 4 3 4 1 . 4 7 . . . . . . . . . . . . . 1 1 . . . . . . . . . . Penetration Max 1 | . . . . . . . 1 . . . . . . . . . . . . . . . . . . . . . . . . . Secondary Targets 9 | . 1 1 2 . . . 5 . . . . . . . . . . . . . . . . . . . . . . . . . Max Gunslinging Chain 1 | . 1 1 1 . . . 1 . . . . . . . . . . . . . . . . . . . . . . . . . Shots Hit Robots 575 | 9 60 16 183 37 4 8 186 1 . 2 . . . . . . 2 . . 8 24 4 12 . . . . . 9 . 4 6 Core Hits 329 | 3 20 50 73 25 . 17 114 2 . 1 . . . . . . 3 . . . 10 2 1 . . . . . 3 . 2 3 Critical Kills 4 | . . 1 1 . . . 2 . . . . . . . . . . . . . . . . . . . . . . . . . Critical Parts Destroyed 4 | . . . 1 . . . 3 . . . . . . . . . . . . . . . . . . . . . . . . . Critical Strikes 17 | . . 1 2 . . . 7 . . . . . . . . . . . . 1 2 . 1 . . . . . 1 . 1 1 Burn 2 | . . . . . . . 2 . . . . . . . . . . . . . . . . . . . . . . . . . Destroy 8 | . . 1 2 . . . 5 . . . . . . . . . . . . . . . . . . . . . . . . . Impale 7 | . . . . . . . . . . . . . . . . . . . . 1 2 . 1 . . . . . 1 . 1 1 Melee Attacks 262 | . . . 2 32 4 . 4 20 4 18 . . . . 1 . 4 2 7 13 30 9 30 . . 1 . 10 24 8 19 20 Impact . | . . . . . . . . . . . . . . . . . . . . . . . . . . . . . . . . . Slashing 39 | . . . 2 32 . . . . . . . . . . . . . . . . . . . . . . . 3 2 . . . Piercing 195 | . . . . . . . 4 20 4 18 . . . . 1 . 3 2 7 6 18 9 26 . . 1 . 7 22 8 19 20 Sneak Attacks 38 | . . . 2 2 4 . 1 . . . . . . . . . 2 . . 6 9 . 7 . . . . . 3 . 2 . Combat Hostiles . | . . . . . . . . . . . . . . . . . . . . . . . . . . . . . . . . . Follow-up Attacks 5 | . . . 1 3 . . . . . . . . . . . . . . . . . . . . . . . . 1 . . . Damage Inflicted 14578 | 87 684 1376 3053 1541 . 670 4319 109 . 126 . . . . . . 213 . . 75 596 127 361 . . . . . 386 . 339 516 Guns 6257 | 87 684 149 1792 142 . 150 3253 . . . . . . . . . . . . . . . . . . . . . . . . . Cannons 1367 | . . . 994 . . . . . . . . . . . . . 151 . . . 95 127 . . . . . . . . . . Explosions 3543 | . . 1227 134 654 . 520 962 46 . . . . . . . . . . . . . . . . . . . . . . . . Melee 3384 | . . . 128 745 . . 87 63 . 126 . . . . . . 62 . . 75 501 . 361 . . . . . 386 . 339 511 Ramming 27 | . . . 5 . . . 17 . . . . . . . . . . . . . . . . . . . . . . . . 5 Kinetic 4500 | 87 469 89 1381 142 . 132 2200 . . . . . . . . . . . . . . . . . . . . . . . . . Thermal 3141 | . 215 60 1405 17 . 18 1053 . . . . . . . . . 151 . . . 95 127 . . . . . . . . . . Explosive 2884 | . . 1227 134 491 . 520 466 46 . . . . . . . . . . . . . . . . . . . . . . . . Electromagnetic 642 | . . . . 146 . . 496 . . . . . . . . . . . . . . . . . . . . . . . . . Impact . | . . . . . . . . . . . . . . . . . . . . . . . . . . . . . . . . . Slashing 899 | . . . 128 745 . . . . . . . . . . . . . . . . . . . . . . . . 26 . . . Piercing 2485 | . . . . . . . 87 63 . 126 . . . . . . 62 . . 75 501 . 361 . . . . . 360 . 339 511 Highest Corruption 11 | . . . . . . . . . . . . . . . . . . . 1 1 1 1 1 11 11 11 . . . 5 1 7 Average Corruption 2 | . . . . . . . . . . . . . . . . . . . 1 1 1 1 1 7 11 11 . . . 5 1 2 Corruption Purged . | . . . . . . . . . . . . . . . . . . . . . . . . . . . . . . . . . Corruption Blocked . | . . . . . . . . . . . . . . . . . . . . . . . . . . . . . . . . . Effects 19 | . . . . . . . . . . . . . . . . . . . 3 1 4 . . 1 4 1 . . . . . 5 Message Errors 2 | . . . . . . . . . . . . . . . . . . . . . 1 . . . 1 . . . . . . . Matter Fused 7 | . . . . . . . . . . . . . . . . . . . 1 . 1 . . . 2 . . . . . . 3 Heat Flow Errors 2 | . . . . . . . . . . . . . . . . . . . . . . . . . 1 . . . . . . 1 Energy Discharges 1 | . . . . . . . . . . . . . . . . . . . 1 . . . . . . . . . . . . . Data Loss (minor) 1 | . . . . . . . . . . . . . . . . . . . . 1 . . . . . . . . . . . . Data Loss (major) 2 | . . . . . . . . . . . . . . . . . . . 1 . . . . 1 . . . . . . . . Misfires 1 | . . . . . . . . . . . . . . . . . . . . . 1 . . . . . . . . . . . Alerts 2 | . . . . . . . . . . . . . . . . . . . . . 1 . . . . . . . . . . 1 Misdirections 1 | . . . . . . . . . . . . . . . . . . . . . . . . . . 1 . . . . . . Overload Shots . | . . . . . . . . . . . . . . . . . . . . . . . . . . . . . . . . . Overflow Damage 695 | . . 75 99 62 . 23 116 2 . 18 . . . . . . . . . 110 3 . 90 . . . . . 31 . 62 4 Projectiles 36 | . . . 36 . . . . . . . . . . . . . . . . . . . . . . . . . . . . . Explosions 139 | . . 75 . . . 23 39 2 . . . . . . . . . . . . . . . . . . . . . . . . Melee 520 | . . . 63 62 . . 77 . . 18 . . . . . . . . . 110 3 . 90 . . . . . 31 . 62 4 Knockbacks . | . . . . . . . . . . . . . . . . . . . . . . . . . . . . . . . . . Impact . | . . . . . . . . . . . . . . . . . . . . . . . . . . . . . . . . . Kinetic . | . . . . . . . . . . . . . . . . . . . . . . . . . . . . . . . . . Secondary . | . . . . . . . . . . . . . . . . . . . . . . . . . . . . . . . . . Self-Inflicted Damage 295 | . . 66 12 . . 81 87 30 . . . . . . . . . . . . . . . . . . . . . . . 19 Shots 11 | . . 2 1 . . 4 2 1 . . . . . . . . . . . . . . . . . . . . . . . 1 Rammed 3 | . . . 1 . . . 1 . . . . . . . . . . . . . . . . . . . . . . . . 1 Targets Rammed 3 | . . . 1 . . . 1 . . . . . . . . . . . . . . . . . . . . . . . . 1 Kicked . | . . . . . . . . . . . . . . . . . . . . . . . . . . . . . . . . . Crushed . | . . . . . . . . . . . . . . . . . . . . . . . . . . . . . . . . . Highest Temperature 334 | . 120 24 252 16 . 46 334 78 4 1 . . . . . . 232 . 54 4 5 23 22 . 174 . . . . . 128 228 Average Temperature 57 | . 36 10 50 6 . 11 104 24 4 1 . . . . . . 100 . 22 4 5 13 11 . 93 . . . . . 45 92 Received Heat Transfer 1929 | . 190 28 246 228 . . 630 163 18 27 . . . . . . . 18 . . 18 39 117 . . 18 . 9 . . 108 72 Siege Activations . | . . . . . . . . . . . . . . . . . . . . . . . . . . . . . . . . . Martial Activations . | . . . . . . . . . . . . . . . . . . . . . . . . . . . . . . . . . Shielding Activations . | . . . . . . . . . . . . . . . . . . . . . . . . . . . . . . . . . Robots Disrupted . | . . . . . . . . . . . . . . . . . . . . . . . . . . . . . . . . . Combat Hostiles . | . . . . . . . . . . . . . . . . . . . . . . . . . . . . . . . . . Robots Corrupted . | . . . . . . . . . . . . . . . . . . . . . . . . . . . . . . . . . Combat Hostiles . | . . . . . . . . . . . . . . . . . . . . . . . . . . . . . . . . . Parts Fried 2 | . . . . . . . . . . . . . . . . . . . . . . . . . . . . . . . . 2 Impact Corruptions . | . . . . . . . . . . . . . . . . . . . . . . . . . . . . . . . . . Robots Melted . | . . . . . . . . . . . . . . . . . . . . . . . . . . . . . . . . . Combat Hostiles . | . . . . . . . . . . . . . . . . . . . . . . . . . . . . . . . . . Parts Melted 7 | . . . 3 . . . 3 . . . . . . . . . 1 . . . . . . . . . . . . . . . Heat Transferred 6370 | . 575 175 2852 50 . 25 2023 . . . . . . . . . 320 . . . 150 200 . . . . . . . . . . Parts Sabotaged . | . . . . . . . . . . . . . . . . . . . . . . . . . . . . . . . . . Parts Stolen . | . . . . . . . . . . . . . . . . . . . . . . . . . . . . . . . . . Parts Stripped . | . . . . . . . . . . . . . . . . . . . . . . . . . . . . . . . . . Power Chain Reactions 2 | . . . . 1 . . . . . . . . . . . . . . . . . . . . . . . . . . . 1 Alert | -11 -10 -10 -9 -9 -9 -8 -8 -8 -8 -8 -8 -8 -7 -7 -6 -6 -6 -6 -5 -5 -5 -5 -4 -4 -4 -4 -3 -3 -2 -2 -1 -1 ------- Run | Yrd Mat Min Mat Min Exi Min Mat Gar Mat Gar Mat Gar Fac DSF Fac Was Fac DSF Fac Gar Fac Gar Fac Was Fac DSF Res Gar Res DSF Acc Com Maximum Alert Level 3 | . . . 2 1 . 1 3 3 2 1 . . . . . . . . . . 1 1 . . . . . . . . . . Low Security (%) 74 | 100 100 100 55 87 . 92 33 . . . 100 100 100 100 100 100 100 100 100 100 58 91 100 100 100 100 100 100 100 100 100 100 Level 1 12 | . . . 18 12 . 7 19 . 71 100 . . . . . . . . . . 41 8 . . . . . . . . . . Level 2 12 | . . . 25 . . . 44 75 28 . . . . . . . . . . . . . . . . . . . . . . . Level 3 . | . . . . . . . 1 24 . . . . . . . . . . . . . . . . . . . . . . . . Level 4 . | . . . . . . . . . . . . . . . . . . . . . . . . . . . . . . . . . Level 5 . | . . . . . . . . . . . . . . . . . . . . . . . . . . . . . . . . . High Security . | . . . . . . . . . . . . . . . . . . . . . . . . . . . . . . . . . Max Security . | . . . . . . . . . . . . . . . . . . . . . . . . . . . . . . . . . Peak Influence 769 | 5 63 102 476 239 . 236 707 769 423 361 175 116 60 42 22 . 30 2 62 156 259 204 107 5 30 68 38 35 51 11 75 72 Initial 456 | . . 7 . 175 . . . 456 373 269 175 116 60 42 21 . . . . 1 23 14 107 5 . 21 38 21 24 5 . 42 Average 145 | 1 23 17 237 144 . 69 314 613 383 340 175 116 60 42 14 . 4 . 25 53 129 86 40 2 1 51 34 27 25 7 20 13 Influence Increases 6074 | 5 239 224 1093 374 . 336 1360 340 91 92 4 . . . 1 . 41 2 124 194 392 310 149 . 32 47 . 34 83 6 292 209 Destroy 0b10 Robot/C 2420 | . 140 140 700 260 . 180 780 . . . . . . . . . 20 . . . 140 60 . . . . . . . . . . Destroy 0b10 Robot/NC 365 | 5 20 5 80 35 . 25 90 5 . 5 . . . . . . 5 . . . 45 . 15 . . . . . 5 . 15 10 Destroy Leader 612 | . 44 20 164 50 . 30 228 . . . . . . . . . 12 . . . 44 10 2 . . . . . 2 . 4 2 Allied During Kill 247 | . . . . 3 . 29 35 . . . . . . . . . . . . . 136 44 . . . . . . . . . . Successful Hack 355 | . 34 . 46 . . . 48 . 28 . 4 . . . . . 2 . 48 14 4 . 23 . 2 . . . 64 . 33 5 Select Force Hacks 90 | . . . . . . . . . . . . . . . . . . . . . . . . . 30 . . . . . 60 . Disable Machine 225 | . . . 15 . . 30 45 60 . 60 . . . . . . . . . . 15 . . . . . . . . . . . Anti-Garrison Action 250 | . . . . . . . . 50 . . . . . . . . . . . 150 . 50 . . . . . . . . . . Destroy Structure 505 | . 1 59 28 26 . 42 44 30 3 27 . . . . 1 . 2 2 16 30 8 26 34 . . 2 . 19 12 6 45 42 Partial Spotted 150 | . . . . . . . . 45 . . . . . . . . . . 15 . . . 30 . . 30 . . . . 30 . Lose Combat Pursuer 855 | . . . 60 . . . 90 150 60 . . . . . . . . . 45 . . 120 45 . . 15 . 15 . . 105 150 Influence Decreases 6074 | 5 218 245 642 780 45 336 657 277 443 145 186 63 56 18 41 2 41 . 124 151 416 127 336 17 2 9 40 17 121 13 225 276 Entered New Map 1701 | . . 14 . 276 45 . . 247 393 145 186 63 56 18 21 2 . . 2 1 22 7 97 12 . 9 30 7 21 2 . 25 Time Decay 3630 | 5 208 229 632 474 . 326 597 . 50 . . . . . 20 . 41 . 122 . 214 . 239 5 2 . 10 . 100 . 205 151 Lost Part 273 | . 10 2 10 30 . 10 20 30 . . . . . . . . . . . . 10 10 . . . . . 10 . 11 20 100 Lost Ally 170 | . . . . . . . 40 . . . . . . . . . . . . . 20 110 . . . . . . . . . . Purge Threat 300 | . . . . . . . . . . . . . . . . . . . . 150 150 . . . . . . . . . . . Squads Dispatched 45 | . 2 . 5 . . . 11 . 1 . . . . . . . 2 1 4 . 3 . 3 . 1 1 . . 1 2 6 2 Investigation 15 | . . . 2 . . . 1 . 1 . . . . . . . 1 . 3 . 2 . 1 . 1 . . . . . 3 . Extermination 8 | . . . . . . . . . . . . . . . . . 1 . . . . . 2 . . . . . 1 . 2 2 Reinforcement 18 | . 2 . 2 . . . 7 . . . . . . . . . . 1 1 . 1 . . . . 1 . . . 2 1 . Assault 1 | . . . 1 . . . . . . . . . . . . . . . . . . . . . . . . . . . . . Garrison 3 | . . . . . . . 3 . . . . . . . . . . . . . . . . . . . . . . . . . Intercept . | . . . . . . . . . . . . . . . . . . . . . . . . . . . . . . . . . Searches Triggered . | . . . . . . . . . . . . . . . . . . . . . . . . . . . . . . . . . Construction Impeded 2 | . . . . . . . 2 . . . . . . . . . . . . . . . . . . . . . . . . . Haulers Reinforced . | . . . . . . . . . . . . . . . . . . . . . . . . . . . . . . . . . Active Scanning Responses . | . . . . . . . . . . . . . . . . . . . . . . . . . . . . . . . . . Cargo Convoy Interrupts . | . . . . . . . . . . . . . . . . . . . . . . . . . . . . . . . . . Stealth | -11 -10 -10 -9 -9 -9 -8 -8 -8 -8 -8 -8 -8 -7 -7 -6 -6 -6 -6 -5 -5 -5 -5 -4 -4 -4 -4 -3 -3 -2 -2 -1 -1 --------- Run | Yrd Mat Min Mat Min Exi Min Mat Gar Mat Gar Mat Gar Fac DSF Fac Was Fac DSF Fac Gar Fac Gar Fac Was Fac DSF Res Gar Res DSF Acc Com Distress Signals 14 | . . . 1 . . . 4 . 1 . . . . . . . . . 1 . . . 4 . . . . . . . . 3 Communications Jammed 4 | . . . . . . . . . . . . . . . . . . . . . . . 1 . . . . . . . 3 . Distress Signals 4 | . . . . . . . . . . . . . . . . . . . . . . . 1 . . . . . . . 3 . Times Spotted 369 | . 16 26 53 14 . 8 55 23 10 4 . 4 . 1 1 6 . 3 6 . 12 21 29 6 . 5 1 6 1 9 14 35 Peak Tracking Total 24 | . 3 11 7 3 . 4 7 18 9 4 . 5 . 1 1 6 1 3 5 . 6 9 24 6 . 5 1 7 1 8 8 12 Tactical Retreats 30 | . . . 2 . . . 2 2 2 . . . . . . . . . 3 . . 3 3 . . 1 . 1 . . 3 8 Traps | -11 -10 -10 -9 -9 -9 -8 -8 -8 -8 -8 -8 -8 -7 -7 -6 -6 -6 -6 -5 -5 -5 -5 -4 -4 -4 -4 -3 -3 -2 -2 -1 -1 ------- Run | Yrd Mat Min Mat Min Exi Min Mat Gar Mat Gar Mat Gar Fac DSF Fac Was Fac DSF Fac Gar Fac Gar Fac Was Fac DSF Res Gar Res DSF Acc Com Traps Triggered 24 | . . . . . . . 1 1 1 . . . . 2 1 . . 1 . . . 1 1 . . 3 . 3 . 1 1 7 Indirectly 1 | . . . . . . . 1 . . . . . . . . . . . . . . . . . . . . . . . . . Trap Hack Attempts 56 | . . . 12 . . . 44 . . . . . . . . . . . . . . . . . . . . . . . . . Triggered . | . . . . . . . . . . . . . . . . . . . . . . . . . . . . . . . . . Disarmed 1 | . . . 1 . . . . . . . . . . . . . . . . . . . . . . . . . . . . . Reprogrammed 4 | . . . 3 . . . 1 . . . . . . . . . . . . . . . . . . . . . . . . . Reused . | . . . . . . . . . . . . . . . . . . . . . . . . . . . . . . . . . Traps Extracted 4 | . . . 3 . . . 1 . . . . . . . . . . . . . . . . . . . . . . . . . Installed . | . . . . . . . . . . . . . . . . . . . . . . . . . . . . . . . . . Triggered . | . . . . . . . . . . . . . . . . . . . . . . . . . . . . . . . . . Most Traps Carried 8 | . . . 3 3 3 3 4 4 4 8 8 8 8 8 8 8 8 8 8 8 4 4 4 4 4 4 4 4 4 . . . Machines | -11 -10 -10 -9 -9 -9 -8 -8 -8 -8 -8 -8 -8 -7 -7 -6 -6 -6 -6 -5 -5 -5 -5 -4 -4 -4 -4 -3 -3 -2 -2 -1 -1 ---------- Run | Yrd Mat Min Mat Min Exi Min Mat Gar Mat Gar Mat Gar Fac DSF Fac Was Fac DSF Fac Gar Fac Gar Fac Was Fac DSF Res Gar Res DSF Acc Com Machines Disabled 17 | . . . 1 . . 2 3 4 . 4 . . . . . . . . . 1 1 1 . . . . . . . . . . Max in Single Turn 2 | . . . 1 . . 1 2 1 . 1 . . . . . . . . . 1 1 1 . . . . . . . . . . Garrison Access 4 | . . . . . . . . . . . . . . . . . . . 1 . . . 1 . . . . . 1 . 1 . Garrison Relay 2 | . . . . . . . . . . . . . . . . . . . . 1 . 1 . . . . . . . . . . Machines Repaired . | . . . . . . . . . . . . . . . . . . . . . . . . . . . . . . . . . Machines Dismantled . | . . . . . . . . . . . . . . . . . . . . . . . . . . . . . . . . . Machines Sabotaged . | . . . . . . . . . . . . . . . . . . . . . . . . . . . . . . . . . Overloaded Fab Kills . | . . . . . . . . . . . . . . . . . . . . . . . . . . . . . . . . . Hacking | -11 -10 -10 -9 -9 -9 -8 -8 -8 -8 -8 -8 -8 -7 -7 -6 -6 -6 -6 -5 -5 -5 -5 -4 -4 -4 -4 -3 -3 -2 -2 -1 -1 --------- Run | Yrd Mat Min Mat Min Exi Min Mat Gar Mat Gar Mat Gar Fac DSF Fac Was Fac DSF Fac Gar Fac Gar Fac Was Fac DSF Res Gar Res DSF Acc Com Machines Accessed 112 | . 3 1 12 1 2 . 10 1 9 . 1 . 1 . . . 4 . 11 1 5 1 15 . 4 . 1 . 11 . 14 4 Terminals 70 | . 3 1 8 1 . . 7 1 6 . . . 1 . . . 3 . 6 1 3 1 7 . 1 . . . 8 . 9 3 Fabricators 7 | . . . . . . . . . . . . . . . . . 1 . 2 . 1 . 2 . . . . . . . 1 . Repair Stations 5 | . . . 1 . . . 1 . 1 . . . . . . . . . 1 . . . . . 1 . . . . . . . Recycling Units 7 | . . . 1 . . . . . . . . . . . . . . . . . . . 2 . 1 . . . 1 . 1 1 Scanalyzers 10 | . . . 2 . . . 1 . 1 . . . . . . . . . . . . . 3 . 1 . . . . . 2 . Garrison Access 11 | . . . . . . . 1 . 1 . 1 . . . . . . . 2 . 1 . 1 . . . 1 . 2 . 1 . Total Hacks 347 | . 8 1 70 1 5 . 39 2 25 . 1 . 1 . . . 14 . 32 4 12 3 49 . 9 . 1 . 23 . 37 10 Successful 237 | . 4 . 51 . 5 . 26 . 13 . 1 . 1 . . . 13 . 21 3 6 . 39 . 8 . 1 . 15 . 28 2 Failed 110 | . 4 1 19 1 . . 13 2 12 . . . . . . . 1 . 11 1 6 3 10 . 1 . . . 8 . 9 8 Catastrophic 15 | . 1 1 1 1 . . 2 1 1 . . . . . . . . . . . . . 1 . . . . . 4 . 1 1 Database Lockouts . | . . . . . . . . . . . . . . . . . . . . . . . . . . . . . . . . . Manual 142 | . 5 1 27 1 1 . 21 . 16 . . . . . . . 5 . 5 3 4 3 15 . 2 . . . 14 . 16 3 Terminals 208 | . 8 1 44 1 . . 26 2 18 . . . 1 . . . 8 . 15 4 8 3 21 . 1 . . . 16 . 22 9 Fabricators 35 | . . . . . . . . . . . . . . . . . 6 . 13 . 1 . 10 . . . . . . . 5 . Repair Stations 15 | . . . 3 . . . 4 . 3 . . . . . . . . . 2 . . . . . 3 . . . . . . . Recycling Units 17 | . . . 1 . . . . . . . . . . . . . . . . . . . 6 . 2 . . . 4 . 3 1 Scanalyzers 51 | . . . 22 . . . 6 . 3 . . . . . . . . . . . . . 11 . 3 . . . . . 6 . Garrison Access 16 | . . . . . . . 3 . 1 . 1 . . . . . . . 2 . 3 . 1 . . . 1 . 3 . 1 . Terminal Hacks 81 | . 3 . 16 . 5 . 6 . 2 . . . 1 . . . 6 . 6 3 2 . 10 . 1 . . . 6 . 12 2 Record 4 | . . . . . 4 . . . . . . . . . . . . . . . . . . . . . . . . . . . Part Schematic 11 | . . . 3 . . . 1 . . . . . . . . . 1 . 2 . . . 3 . . . . . 1 . . . Robot Analysis 5 | . 2 . 2 . . . . . . . . . . . . . . . . . . . . . . . . . . . . 1 Prototype ID Bank 7 | . . . 3 . . . 2 . . . . . . . . . 1 . 1 . . . . . . . . . . . . . Open Door 4 | . . . . . . . . . . . . . . . . . . . . . . . 1 . . . . . . . 3 . Open DSF 4 | . . . . . . . . . . . . . 1 . . . 1 . . . . . . . 1 . . . 1 . . . Level Access Points 1 | . . . . . . . . . 1 . . . . . . . . . . . . . . . . . . . . . . . Branch Access Points 5 | . . . 1 . . . . . . . . . . . . . 1 . 1 . 1 . . . . . . . . . 1 . Emergency Access Points 3 | . . . . . . . 1 . . . . . . . . . . . . 1 . . . . . . . . . . 1 . Machine Index 3 | . . . . . . . . . . . . . . . . . . . . . . . 1 . . . . . 1 . 1 . Terminal Index 5 | . . . 1 . . . . . . . . . . . . . 1 . . . . . 1 . . . . . 1 . 1 . Scanalyzer Index 1 | . . . 1 . . . . . . . . . . . . . . . . . . . . . . . . . . . . . Unreport Threat 1 | . . . . . . . . . . . . . . . . . . . . 1 . . . . . . . . . . . . Locate Traps 8 | . . . 3 . . . 1 . . . . . . . . . 1 . 1 . . . 1 . . . . . . . 1 . Hauler Manifests 2 | . . . . . . . . . . . . . . . . . . . . . . . . . . . . . 1 . 1 . Registered Components 5 | . . . 1 . . . . . . . . . . . . . . . 1 . . . 1 . . . . . 1 . 1 . Registered Prototypes 2 | . . . . . . . . . . . . . . . . . . . . . . . 1 . . . . . . . 1 . Zone Layout 7 | . 1 . 1 . . . 1 . 1 . . . . . . . . . . . 1 . 1 . . . . . . . 1 . Garrison Registry 1 | . . . . . . . . . . . . . . . . . . . . 1 . . . . . . . . . . . . Proto ID Catalog 1 | . . . . . 1 . . . . . . . . . . . . . . . . . . . . . . . . . . . Disengage Seal 1 | . . . . . . . . . . . . . . . . . . . . . . . . . . . . . . . . 1 Fabricator Hacks 25 | . . . . . . . . . . . . . . . . . 4 . 10 . 1 . 6 . . . . . . . 4 . Network Status 5 | . . . . . . . . . . . . . . . . . 1 . 2 . . . 2 . . . . . . . . . Load Schematic 11 | . . . . . . . . . . . . . . . . . 2 . 5 . . . 2 . . . . . . . 2 . Build 9 | . . . . . . . . . . . . . . . . . 1 . 3 . 1 . 2 . . . . . . . 2 . Repair Station Hacks 10 | . . . 2 . . . 4 . 1 . . . . . . . . . . . . . . . 3 . . . . . . . Scan Component 4 | . . . 1 . . . 2 . . . . . . . . . . . . . . . . . 1 . . . . . . . Repair 4 | . . . 1 . . . 2 . . . . . . . . . . . . . . . . . 1 . . . . . . . Refit 2 | . . . . . . . . . 1 . . . . . . . . . . . . . . . 1 . . . . . . . Recycling Unit Hacks 6 | . . . 1 . . . . . . . . . . . . . . . . . . . 2 . 1 . . . 1 . 1 . Report Inventory 6 | . . . 1 . . . . . . . . . . . . . . . . . . . 2 . 1 . . . 1 . 1 . Scanalyzer 47 | . . . 22 . . . 6 . 3 . . . . . . . . . . . . . 11 . 2 . . . . . 3 . Insert Component 22 | . . . 10 . . . 3 . 1 . . . . . . . . . . . . . 5 . 1 . . . . . 2 . Analyze 25 | . . . 12 . . . 3 . 2 . . . . . . . . . . . . . 6 . 1 . . . . . 1 . Garrison Access Hacks 11 | . . . . . . . 1 . 1 . 1 . . . . . . . 2 . 1 . 1 . . . 1 . 2 . 1 . Unlock Access 7 | . . . . . . . 1 . 1 . 1 . . . . . . . 1 . 1 . . . . . 1 . 1 . . . Seal Access 4 | . . . . . . . . . . . . . . . . . . . 1 . . . 1 . . . . . 1 . 1 . Unauthorized Hacks 57 | . 1 . 10 . . . 9 . 6 . . . . . . . 3 . 3 . 2 . 9 . 1 . . . 6 . 7 . Terminals 35 | . 1 . 10 . . . 9 . 6 . . . . . . . 1 . . . 1 . 2 . . . . . 2 . 3 . Track 1 | . . . 1 . . . . . . . . . . . . . . . . . . . . . . . . . . . . . Assimilate 2 | . . . . . . . . . . . . . . . . . . . . . . . 1 . . . . . 1 . . . Botnet 17 | . 1 . 3 . . . 4 . 2 . . . . . . . 1 . . . 1 . 1 . . . . . 1 . 3 . Operators 1 | . . . 1 . . . . . . . . . . . . . . . . . . . . . . . . . . . . . Skim 14 | . . . 5 . . . 5 . 4 . . . . . . . . . . . . . . . . . . . . . . . Fabricators 9 | . . . . . . . . . . . . . . . . . 2 . 3 . . . 3 . . . . . . . 1 . Report 1 | . . . . . . . . . . . . . . . . . . . . . . . 1 . . . . . . . . . Prioritize 4 | . . . . . . . . . . . . . . . . . 1 . 1 . . . 1 . . . . . . . 1 . Liberate 1 | . . . . . . . . . . . . . . . . . . . . . . . 1 . . . . . . . . . Recompile 3 | . . . . . . . . . . . . . . . . . 1 . 2 . . . . . . . . . . . . . Repair Stations . | . . . . . . . . . . . . . . . . . . . . . . . . . . . . . . . . . Recycling Units 8 | . . . . . . . . . . . . . . . . . . . . . . . 4 . . . . . 3 . 1 . Reject 2 | . . . . . . . . . . . . . . . . . . . . . . . 1 . . . . . 1 . . . Recyclers 2 | . . . . . . . . . . . . . . . . . . . . . . . 1 . . . . . 1 . . . Mask 4 | . . . . . . . . . . . . . . . . . . . . . . . 2 . . . . . 1 . 1 . Scanalyzers 3 | . . . . . . . . . . . . . . . . . . . . . . . . . 1 . . . . . 2 . Extract 3 | . . . . . . . . . . . . . . . . . . . . . . . . . 1 . . . . . 2 . Garrison Access 2 | . . . . . . . . . . . . . . . . . . . . . 1 . . . . . . . 1 . . . Reprogram 2 | . . . . . . . . . . . . . . . . . . . . . 1 . . . . . . . 1 . . . Data Cores Recovered . | . . . . . . . . . . . . . . . . . . . . . . . . . . . . . . . . . Used . | . . . . . . . . . . . . . . . . . . . . . . . . . . . . . . . . . Hacking Detections 90 | . 3 1 11 1 . . 9 1 6 . 1 . . . . . 4 . 10 1 4 1 11 . 3 . 1 . 8 . 10 4 Full Trace Events 7 | . . . 2 . . . . 1 . . . . . . . . . . 1 . 1 . 1 . . . . . . . 1 . Feedback Events 1 | . . . . . . . . . . . . . . . . . . . 1 . . . . . . . . . . . . . Corruption 1 | . . . . . . . . . . . . . . . . . . . 1 . . . . . . . . . . . . . Feedback Blocked . | . . . . . . . . . . . . . . . . . . . . . . . . . . . . . . . . . Robot Schematics Acquired . | . . . . . . . . . . . . . . . . . . . . . . . . . . . . . . . . . Robots Built . | . . . . . . . . . . . . . . . . . . . . . . . . . . . . . . . . . Authchips . | . . . . . . . . . . . . . . . . . . . . . . . . . . . . . . . . . Time . | . . . . . . . . . . . . . . . . . . . . . . . . . . . . . . . . . Total Robot Build Rating . | . . . . . . . . . . . . . . . . . . . . . . . . . . . . . . . . . Part Schematics Acquired 37 | . . . 13 . . . 4 . 1 . . . . . . . 1 . 2 . . . 6 . 6 . . . 1 . 3 . Parts Built 10 | . . . . . . . . . . . . . . . . . 1 . 3 . 2 . 2 . . . . . . . 2 . Authchips 7 | . . . . . . . . . . . . . . . . . 1 . 3 . . . 2 . . . . . . . 1 . Time 738 | . . . . . . . . . . . . . . . . . 67 . 268 . 139 . 159 . . . . . . . 105 . Total Part Build Rating 62 | . . . . . . . . . . . . . . . . . 4 . 12 . 18 . 12 . . . . . . . 16 . Parts Repaired 4 | . . . 1 . . . 2 . . . . . . . . . . . . . . . . . 1 . . . . . . . Time 202 | . . . 32 . . . 102 . . . . . . . . . . . . . . . . . 68 . . . . . . . Parts Recycled . | . . . . . . . . . . . . . . . . . . . . . . . . . . . . . . . . . Recycled Matter . | . . . . . . . . . . . . . . . . . . . . . . . . . . . . . . . . . Retrieved Matter . | . . . . . . . . . . . . . . . . . . . . . . . . . . . . . . . . . Retrieved Components . | . . . . . . . . . . . . . . . . . . . . . . . . . . . . . . . . . Parts Scanalyzed 19 | . . . 10 . . . 3 . 1 . . . . . . . . . . . . . 3 . 1 . . . . . 1 . Part Schematics Acquired 19 | . . . 10 . . . 3 . 1 . . . . . . . . . . . . . 3 . 1 . . . . . 1 . Parts Damaged 2 | . . . 1 . . . . . . . . . . . . . . . . . . . . . . . . . . . 1 . Bothacking | -11 -10 -10 -9 -9 -9 -8 -8 -8 -8 -8 -8 -8 -7 -7 -6 -6 -6 -6 -5 -5 -5 -5 -4 -4 -4 -4 -3 -3 -2 -2 -1 -1 ------------ Run | Yrd Mat Min Mat Min Exi Min Mat Gar Mat Gar Mat Gar Fac DSF Fac Was Fac DSF Fac Gar Fac Gar Fac Was Fac DSF Res Gar Res DSF Acc Com Used RIF Installer 3 | . . . . . . . . . . . . 1 . . . . . . . 1 . 1 . . . . . . . . . . Hotswap 1 | . . . . . . . . . . . . . . . . . . . . . . 1 . . . . . . . . . . Watcher Feeds 1 | . . . . . . . . . . . . . . . . . . . . 1 . . . . . . . . . . . . Robots Hacked 15 | . . . . . 4 . . . . . . . . . . . 1 . . 1 5 . 4 . . . . . . . . . Non-combat 12 | . . . . . 3 . . . . . . . . . . . 1 . . . 4 . 4 . . . . . . . . . Combat 3 | . . . . . 1 . . . . . . . . . . . . . . 1 1 . . . . . . . . . . . Robot Hacks Applied 18 | . . . . . 4 . . . . . . . . . . . 1 . . 1 8 . 4 . . . . . . . . . parse_system 7 | . . . . . 4 . . . . . . . . . . . . . . 1 2 . . . . . . . . . . . find_chute 1 | . . . . . . . . . . . . . . . . . . . . . . . 1 . . . . . . . . . find_dsf 1 | . . . . . . . . . . . . . . . . . 1 . . . . . . . . . . . . . . . drop_inventory 1 | . . . . . . . . . . . . . . . . . . . . . 1 . . . . . . . . . . . ignore_parts 1 | . . . . . . . . . . . . . . . . . . . . . . . 1 . . . . . . . . . purge_threat 1 | . . . . . . . . . . . . . . . . . . . . . 1 . . . . . . . . . . . block_reporting 1 | . . . . . . . . . . . . . . . . . . . . . 1 . . . . . . . . . . . recall_investigation 1 | . . . . . . . . . . . . . . . . . . . . . 1 . . . . . . . . . . . amplify_resonance 1 | . . . . . . . . . . . . . . . . . . . . . . . 1 . . . . . . . . . formatsys_low 2 | . . . . . . . . . . . . . . . . . . . . . 2 . . . . . . . . . . . formatsys_high 1 | . . . . . . . . . . . . . . . . . . . . . . . 1 . . . . . . . . . Relay Couplers Released 12 | . . . . . . . . . . . . . . . . . . . . 4 . 8 . . . . . . . . . . Machine Destruction 9 | . . . . . . . . . . . . . . . . . . . . 4 . 5 . . . . . . . . . . Programmers 3 | . . . . . . . . . . . . . . . . . . . . . . 3 . . . . . . . . . . Attached 3 | . . . . . . . . . . . . . . . . . . . . . 1 . 1 . . . 1 . . . . . Fabnet Peak Effective % . | . . . . . . . . . . . . . . . . . . . . . . . . . . . . . . . . . Robots Rewired 3 | . . . . . . . . . . . . . . . . . . . . 3 . . . . . . . . . . . . Allies Hacked . | . . . . . . . . . . . . . . . . . . . . . . . . . . . . . . . . . Hacks Repelled . | . . . . . . . . . . . . . . . . . . . . . . . . . . . . . . . . . Allies | -11 -10 -10 -9 -9 -9 -8 -8 -8 -8 -8 -8 -8 -7 -7 -6 -6 -6 -6 -5 -5 -5 -5 -4 -4 -4 -4 -3 -3 -2 -2 -1 -1 -------- Run | Yrd Mat Min Mat Min Exi Min Mat Gar Mat Gar Mat Gar Fac DSF Fac Was Fac DSF Fac Gar Fac Gar Fac Was Fac DSF Res Gar Res DSF Acc Com Total Allies 16 | . . . . 5 . . . . . . . . . . . 1 . . . 5 3 . 1 . . . . . 1 . . . Largest Group 7 | . . . . 5 5 3 2 . . . . . . . . 1 . . . 5 7 7 1 . . . . . 1 . . . Highest-Rated Group 408 | . . . . 84 84 40 32 . . . . . . . . 31 . . . 302 408 408 10 . . . . . 45 . . . Highest-Rated Ally 119 | . . . . 31 31 16 16 . . . . . . . . 31 . . . 119 119 119 10 . . . . . 45 . . . Total Orders 1 | . . . . . . . . . . . . . . . . . . . . . . 1 . . . . . . . . . . STAY 1 | . . . . . . . . . . . . . . . . . . . . . . 1 . . . . . . . . . . Ally Attacks 109 | . . . . . . 9 37 . . . . . . . . . . . . . 36 27 . . . . . . . . . . Total Damage 2284 | . . . . . . 134 330 . . . . . . . . . . . . . 907 913 . . . . . . . . . . Kills 12 | . . . . . . 1 2 . . . . . . . . . . . . . 6 3 . . . . . . . . . . Allies Corrupted . | . . . . . . . . . . . . . . . . . . . . . . . . . . . . . . . . . Allies Melted . | . . . . . . . . . . . . . . . . . . . . . . . . . . . . . . . . . Intel | -11 -10 -10 -9 -9 -9 -8 -8 -8 -8 -8 -8 -8 -7 -7 -6 -6 -6 -6 -5 -5 -5 -5 -4 -4 -4 -4 -3 -3 -2 -2 -1 -1 ------- Run | Yrd Mat Min Mat Min Exi Min Mat Gar Mat Gar Mat Gar Fac DSF Fac Was Fac DSF Fac Gar Fac Gar Fac Was Fac DSF Res Gar Res DSF Acc Com Active Infowar (turns) 4917 | . . . . . . . 221 162 109 281 4 238 5 54 45 27 221 73 365 241 453 174 615 41 98 56 31 88 238 118 522 437 Terrain 1113 | . . . . . . . . . . . . . . . . . . . . . . . 12 20 80 . 13 . 172 110 515 191 T.N.C. 2660 | . . . . . . . . . . . . . 5 54 45 27 221 73 365 241 453 174 615 41 98 56 31 88 73 . . . Machine Analysis 2163 | . . . . . . . 221 162 109 281 4 238 5 54 45 27 221 73 365 241 117 . . . . . . . . . . . Jamming 1656 | . . . . . . . . . . . . . . . . . . . . . 14 . 360 . 18 31 31 88 195 118 364 437 Robot Analysis Total 5 | . 2 . 2 . . . . . . . . . . . . . . . . . . . . . . . . . . . . 1 Derelict Logs Recovered 4 | . . 2 . 2 . . . . . . . . . . . . . . . . . . . . . . . . . . . . Drone Launches . | . . . . . . . . . . . . . . . . . . . . . . . . . . . . . . . . . Drone Recoveries . | . . . . . . . . . . . . . . . . . . . . . . . . . . . . . . . . . Exploration | -11 -10 -10 -9 -9 -9 -8 -8 -8 -8 -8 -8 -8 -7 -7 -6 -6 -6 -6 -5 -5 -5 -5 -4 -4 -4 -4 -3 -3 -2 -2 -1 -1 ------------- Run | Yrd Mat Min Mat Min Exi Min Mat Gar Mat Gar Mat Gar Fac DSF Fac Was Fac DSF Fac Gar Fac Gar Fac Was Fac DSF Res Gar Res DSF Acc Com Turns Passed 14072 | 88 647 1021 2410 1211 735 1100 2104 162 109 281 4 238 5 54 45 27 221 73 365 241 453 174 615 41 98 56 31 88 238 141 524 472 Spaces Moved 13371 | 57 385 589 966 575 382 554 1056 336 263 318 13 180 10 85 123 84 405 77 674 547 841 279 1277 109 80 99 82 197 519 167 1045 997 Core 11 | 4 . . . . . . . . . . . . . . . . . . . . . . . . . . . . . . . 7 Treads 1435 | . 134 589 709 . . . 3 . . . . . . . . . . . . . . . . . . . . . . . . . Legs . | . . . . . . . . . . . . . . . . . . . . . . . . . . . . . . . . . Wheels 2791 | 53 251 . 257 575 382 554 719 . . . . . . . . . . . . . . . . . . . . . . . . . Hover . | . . . . . . . . . . . . . . . . . . . . . . . . . . . . . . . . . Flight 9134 | . . . . . . . 334 336 263 318 13 180 10 85 123 84 405 77 674 547 841 279 1277 109 80 99 82 197 519 167 1045 990 Fastest Speed 17 | 50 100 160 130 145 190 190 27 27 28 28 28 28 28 28 28 28 27 24 21 27 34 34 29 34 34 34 35 32 31 31 17 28 Average Speed 75 | 96 126 160 161 182 190 190 129 27 30 46 28 28 28 28 28 28 27 29 25 29 34 34 34 34 34 34 35 34 31 31 28 33 Slowest Speed 560 | 100 240 160 240 190 190 190 560 97 98 98 28 28 28 28 28 28 28 95 27 34 109 110 119 34 34 35 35 35 35 31 32 108 Overloaded Moves 89 | . . . . . . . . . . . . . . . . . . 13 18 . . . 14 . . . . 24 . . 6 14 Propulsion Burnouts . | . . . . . . . . . . . . . . . . . . . . . . . . . . . . . . . . . Robots Hopped 92 | . . . . . . . . 6 4 2 . . . 1 2 2 5 2 3 . 10 5 11 6 . 2 . . 2 2 19 8 Potential Cave-ins 9 | . . . . . . . . . . . . . . . . . . . . . . . . . . . . . . . . 9 Cave-ins Triggered . | . . . . . . . . . . . . . . . . . . . . . . . . . . . . . . . . . Exploration Rate (%) 48 | 5 70 98 75 98 70 91 81 36 36 38 3 37 . 84 7 77 13 74 21 72 25 29 35 88 3 80 4 36 14 93 32 30 Regions Visited 32 Branch Regions 5 Pre-discovered Areas 6 | . . . 3 . 1 . 2 . . . . . . . . . . . . . . . . . . . . . . . . . Known Exits Taken 13 | . . . 1 . . 1 1 . 1 . 1 . 1 . . . 1 . 1 . 1 . . . 1 . 1 . 1 . 1 . Unknown Exits Taken 5 | 1 1 1 . 1 1 . . . . . . . . . . . . . . . . . . . . . . . . . . . Scrap Searched 3 | . . 1 . 1 . 1 . . . . . . . . . . . . . . . . . . . . . . . . . . Spaces Dug 197 | . . 42 16 9 . 22 11 10 3 2 . . . . 1 . 2 2 8 . 3 1 17 . . 1 . 2 4 2 14 25 Terrain Destroyed 374 | . . 126 20 27 . 45 54 10 3 2 . . . . 1 . 2 2 8 . 3 1 17 . . 1 . 2 4 2 15 29 Melee 69 | . . . . . . . 1 7 3 2 . . . . 1 . 1 2 6 . 3 1 14 . . 1 . 2 4 2 13 6 Projectile 18 | . . . . . . . 1 1 . . . . . . . . 1 . 2 . . . 3 . . . . . . . 2 8 AOE 287 | . . 126 20 27 . 45 52 2 . . . . . . . . . . . . . . . . . . . . . . . 15 Terrain Rammed . | . . . . . . . . . . . . . . . . . . . . . . . . . . . . . . . . . Walls Destroyed . | . . . . . . . . . . . . . . . . . . . . . . . . . . . . . . . . . Machines Disabled . | . . . . . . . . . . . . . . . . . . . . . . . . . . . . . . . . . Actions | -11 -10 -10 -9 -9 -9 -8 -8 -8 -8 -8 -8 -8 -7 -7 -6 -6 -6 -6 -5 -5 -5 -5 -4 -4 -4 -4 -3 -3 -2 -2 -1 -1 --------- Run | Yrd Mat Min Mat Min Exi Min Mat Gar Mat Gar Mat Gar Fac DSF Fac Was Fac DSF Fac Gar Fac Gar Fac Was Fac DSF Res Gar Res DSF Acc Com Total 16389 | 75 473 631 1573 673 393 584 1563 374 284 432 13 367 11 113 132 85 502 122 854 622 967 337 1419 105 149 117 84 207 570 245 1215 1098 Wait 1647 | 2 3 5 346 37 . 12 213 7 8 82 . 186 . 3 1 . 73 21 144 40 78 34 69 . 68 4 . . 15 57 113 26 Move 13180 | 56 384 588 965 574 381 553 1055 323 255 313 13 179 9 82 119 80 394 72 668 546 824 269 1255 100 79 94 82 196 514 163 1013 982 Hop 72 | . . . . . . . . 5 4 2 . . . 1 2 1 5 2 3 . 6 4 11 2 . 2 . . 2 1 12 7 Pick Up 163 | 4 17 3 36 2 3 1 24 . 3 1 . 1 . 1 3 3 4 2 7 7 1 4 10 1 . 1 . 2 5 3 7 7 Fast Attach 82 | 7 1 1 9 1 . . 19 . 1 . . . . . . . . . 2 2 7 . 11 1 1 3 . . 2 2 4 8 Attach 94 | . 1 1 3 3 . 1 13 4 1 6 . . 2 . 3 . 6 1 8 2 1 3 5 1 . 1 2 . 3 2 9 12 Detach 37 | . 1 . . . . . 2 2 1 7 . . . . 1 . 3 . 3 . . 2 3 . . 1 . . 1 . 5 5 Swap 122 | . 7 4 20 14 2 4 28 2 2 2 . . . . . . 4 2 4 1 8 3 4 . 1 4 . 1 1 1 3 . Drop 195 | . 11 1 36 2 3 1 46 . 5 1 . 1 . . 2 1 4 2 6 9 8 2 17 . . 6 . 1 5 3 8 14 Fire 406 | 6 48 28 144 13 . 12 114 2 . . . . . . . . 5 . 2 2 4 6 4 . . . . . . . 4 12 Melee 251 | . . . 1 27 4 . 4 20 4 18 . . . . 1 . 4 2 7 13 30 9 30 . . 1 . 7 22 8 19 20 Ram 2 | . . . . . . . 1 . . . . . . . . . . . . . . . . . . . . . . . . 1 Kick . | . . . . . . . . . . . . . . . . . . . . . . . . . . . . . . . . . Crush 1 | . . . 1 . . . . . . . . . . . . . . . . . . . . . . . . . . . . . Escape Stasis 81 | . . . . . . . . 9 . . . . . 26 . . . 18 . . . 1 . . . . . . . 5 18 4 Rewire . | . . . . . . . . . . . . . . . . . . . . . . . . . . . . . . . . . Trap 56 | . . . 12 . . . 44 . . . . . . . . . . . . . . . . . . . . . . . . . Miscellaneous . | . . . . . . . . . . . . . . . . . . . . . . . . . . . . . . . . . Route ------- -11/Scrapyard -10/Materials (discovered 3 exits: *Mat / *Min / [*Sub]) -10/Mines (discovered 2 exits: *Mat x2) -9/Materials (discovered 5 exits: *Mat / *Min x2 / *Sto x2) -9/Mines (discovered 3 exits: *Mat x2 / *Exi) -9/Exiles -8/Mines (discovered 2 exits: *Mat x2) -8/Materials (discovered 4 exits: *Fac x3 / Gar) -8/Garrison (discovered 2 exits: *Mat x2) -8/Materials (discovered 4 exits: Fac x3 / Gar) -8/Garrison -8/Materials -8/Garrison -7/Factory -7/DSF -6/Factory -6/Waste -6/Factory (discovered 3 exits: Low x2 / DSF) -6/DSF -5/Factory (discovered 4 exits: *Fac / *Upp x2 / Gar) -5/Garrison (discovered 3 exits: *Fac x3) -5/Factory (discovered 3 exits: Upp x2 / Gar) -5/Garrison -4/Factory -4/Waste -4/Factory -4/DSF -3/Research -3/Garrison -2/Research (discovered 3 exits: Acc / Gar / DSF) -2/DSF -1/Access -1/Command (discovered 1 exit: [*Sur]) History --------- Turn | Location | Event 6 | -11/Scrapyard | Discovered new exit (range 15) 89 | -11/Scrapyard | Entered Materials 90 | -10/Materials | Met a group of wandering Federalists 190 | -10/Materials | Discovered new exit (range 14) 224 | -10/Materials | Discovered new exit (range 7) 332 | -10/Materials | Build established: Mutant 584 | -10/Materials | Discovered new exit (range 13) 736 | -10/Materials | Entered Mines 1030 | -10/Mines | Discovered new exit (range 7) 1055 | -10/Mines | Assembled infested the area 1060 | -10/Mines | Assisted by a Guerilla fighting off Assembled 1159 | -10/Mines | Destroyed 12 combat bots 1172 | -10/Mines | Discovered new exit (range 11) 1199 | -10/Mines | Destroyed 7 combat bots 1371 | -10/Mines | Found a hidden stash of uninstalled traps 1458 | -10/Mines | Learned 4 Materials zone layouts 1520 | -10/Mines | A weapon hastily lodged in a ceiling crevice suddenly fell to the ground 1757 | -10/Mines | Entered Materials 1757 | -9/Materials | Evolved 2 slots: Propulsion x1, Utility x1 1758 | -9/Materials | Identified exit to Storage 1759 | -9/Materials | Identified exit to Mines 1875 | -9/Materials | Repaired Imp. Treads 2129 | -9/Materials | Build established: Scavenger-Mutant 2610 | -9/Materials | Learned Storage stockpile data 2681 | -9/Materials | Learned location of 1 exit from Recycling 2799 | -9/Materials | Learned location of Zion (-7) 2846 | -9/Materials | Learned location of 1 exit from Storage 2870 | -9/Materials | Build established: Mutant 2882 | -9/Materials | Learned location of Recycling (-9) 2981 | -9/Materials | Learned location of Storage (-9) 3045 | -9/Materials | Learned location of 1 exit from Recycling 3359 | -9/Materials | Discovered new exit (range 10) 4157 | -9/Materials | First assault squad dispatched 4167 | -9/Materials | Entered Mines 4168 | -9/Mines | Identified exit to Materials 4324 | -9/Mines | Learned 2 Materials zone layouts 4368 | -9/Mines | Core integrity fell below 50% 4613 | -9/Mines | Learned location of 1 exit from Materials 4625 | -9/Mines | Deemed a non-threat by the Exiles lab entrance 4627 | -9/Mines | Discovered new exit (range 5) 4741 | -9/Mines | Assisted by bots powering up and referring to "LRC-V3" 5378 | -9/Mines | Entered Exiles 5378 | -9/Exiles | Accompanied by 5 allies 5408 | -9/Exiles | Led the pair of lost Derelicts to a safe place 5430 | -9/Exiles | Met 8R-AWN 5459 | -9/Exiles | Met EX-HEX 5531 | -9/Exiles | Met EX-DEC 5624 | -9/Exiles | Met EX-BIN 5815 | -9/Exiles | Aligned with FarCom system 5817 | -9/Exiles | Given EX-Vault access code 5862 | -9/Exiles | Opened EX-Vault 5876 | -9/Exiles | Found Gui. Plasma Cannon 5915 | -9/Exiles | Warned to stay clear of 0b10 Research branches 6092 | -9/Exiles | Discovered new exit (range 14) 6113 | -9/Exiles | Left Exiles lab with Gui. Plasma Cannon 6113 | -9/Exiles | Entered Mines 6113 | -8/Mines | Accompanied by 3 allies 6543 | -8/Mines | Build established: Scavenger-Mutant 7198 | -8/Mines | Discovered exit to Materials (range 7) 7213 | -8/Mines | Entered Materials 7213 | -8/Materials | Accompanied by 2 allies 7213 | -8/Materials | Evolved 2 slots: Propulsion x1, Weapon x1 7214 | -8/Materials | Identified exit to Factory 7465 | -8/Materials | Repaired Broken Cmb. Airjet 7498 | -8/Materials | Repaired Med. Armor Plating 8131 | -8/Materials | Identified exit to Garrison 8176 | -8/Materials | Garrison activated, responded to threat 8397 | -8/Materials | Discovered exit to Factory (range 6) 8405 | -8/Materials | Build established: Scavenger-Skirmisher 8687 | -8/Materials | Garrison activated, responded to threat 8701 | -8/Materials | Discovered exit to Factory (range 16) 8763 | -8/Materials | Learned 4 Lower Caves zone layouts 8795 | -8/Materials | Learned Factory machine intel 8826 | -8/Materials | Learned location of Lower Caves (-7) 8827 | -8/Materials | Learned 2 Lower Caves zone layouts 8828 | -8/Materials | Learned 4 Lower Caves zone layouts 8829 | -8/Materials | Learned location of 1 exit from Recycling 8854 | -8/Materials | Learned Storage terminal intel 9247 | -8/Materials | Garrison activated, responded to threat 9317 | -8/Materials | Entered Garrison 9426 | -8/Garrison | Discovered new exit (range 10) 9439 | -8/Garrison | Attempted to access garrison exit controls, blocked by remote lockdown 9469 | -8/Garrison | Core integrity fell below 50% 9477 | -8/Garrison | Discovered new exit (range 8) 9479 | -8/Garrison | Entered Materials 9496 | -8/Materials | Lost 3 parts (1p1n1w) 9588 | -8/Materials | Identified exit to Garrison 9588 | -8/Materials | Entered Garrison 9842 | -8/Garrison | Triggered checkpoint 9843 | -8/Garrison | Triggered checkpoint 9847 | -8/Garrison | Core integrity fell below 20% 9867 | -8/Garrison | Discovered new exit (range 11) 9869 | -8/Garrison | Entered Materials 9873 | -8/Materials | Identified exit to Garrison 9873 | -8/Materials | Entered Garrison 9887 | -8/Garrison | Installed Relay Interface Framework 10072 | -8/Garrison | Build established: Trapper-Sprinter 10094 | -8/Garrison | Triggered checkpoint 10109 | -8/Garrison | Discovered exit to Factory (range 10) 10111 | -8/Garrison | Entered Factory 10111 | -7/Factory | Evolved 2 slots: Utility x2 10112 | -7/Factory | Loaded intel: 326 machine locations 10116 | -7/Factory | Identified exit to DSF 10116 | -7/Factory | Entered DSF 10167 | -7/DSF | Additional patrols routed to DSF 10167 | -7/DSF | Discovered new exit (range 12) 10170 | -7/DSF | Entered Factory 10170 | -6/Factory | Evolved 2 slots: Utility x2 10215 | -6/Factory | Sucked down chute 10215 | -6/Factory | Entered Waste 10216 | -6/Waste | Met a frightened Derelict 10224 | -6/Waste | Spotted C-40 Crusher 10227 | -6/Waste | Spotted C-40 Crusher 10229 | -6/Waste | Spotted C-40 Crusher 10229 | -6/Waste | Spotted C-40 Crusher 10232 | -6/Waste | Spotted C-40 Crusher 10232 | -6/Waste | Discovered new exit (range 13) 10233 | -6/Waste | Spotted C-40 Crusher 10242 | -6/Waste | Entered Factory 10262 | -6/Factory | Identified exit to Lower Caves 10380 | -6/Factory | Fabricated Cld. VTOL Module (x1) 10462 | -6/Factory | Identified exit to DSF 10463 | -6/Factory | Entered DSF 10465 | -6/DSF | Build established: Hacker-Scout 10493 | -6/DSF | Additional patrols routed to DSF 10530 | -6/DSF | Discovered new exit (range 14) 10536 | -6/DSF | Entered Factory 10536 | -5/Factory | Evolved 2 slots: Power x1, Propulsion x1 10547 | -5/Factory | Identified exit to Upper Caves 10649 | -5/Factory | Discovered new exit (range 13) 10738 | -5/Factory | Fabricated Cld. VTOL Module (x1) 10809 | -5/Factory | Fabricated Cld. VTOL Module (x1) 10879 | -5/Factory | Fabricated Cld. VTOL Module (x1) 10901 | -5/Factory | Identified exit to Garrison 10901 | -5/Factory | Entered Garrison 10901 | -5/Garrison | Discovered recently destroyed garrison 10935 | -5/Garrison | Expanded RIF knowledge: Watcher Feeds 10943 | -5/Garrison | Garrison Relay disabled 10981 | -5/Garrison | Discovered new exit (range 24) 10981 | -5/Garrison | Discovered new exit (range 47) 10981 | -5/Garrison | Discovered new exit (range 37) 11024 | -5/Garrison | Rewired Executioner 11057 | -5/Garrison | Found embedded Infiltrators 11142 | -5/Garrison | Entered Factory 11142 | -5/Factory | Accompanied by 5 allies 11449 | -5/Factory | Identified exit to Garrison 11552 | -5/Factory | Fabricated Enh. Quantum Rifle? 11569 | -5/Factory | Build established: Hacker-Mutant 11595 | -5/Factory | Entered Garrison 11595 | -5/Garrison | Accompanied by 7 allies 11644 | -5/Garrison | Spotted B-75 Beast 11656 | -5/Garrison | Allies destroyed B-75 Beast 11664 | -5/Garrison | Triggered checkpoint 11667 | -5/Garrison | Triggered checkpoint 11680 | -5/Garrison | Found Exp. Core Analyzer 11681 | -5/Garrison | Triggered checkpoint 11699 | -5/Garrison | Triggered checkpoint 11720 | -5/Garrison | Expanded RIF knowledge: Hotswap 11723 | -5/Garrison | Lost 6 allies 11750 | -5/Garrison | Garrison Relay disabled 11766 | -5/Garrison | Discovered new exit (range 12) 11769 | -5/Garrison | Entered Factory 11769 | -4/Factory | Evolved 2 slots: Utility x2 12176 | -4/Factory | Discovered new exit (range 10) 12198 | -4/Factory | Fabricated Adv. Hacking Suite (x1) 12287 | -4/Factory | Fabricated Adv. Hacking Suite (x1) 12384 | -4/Factory | Sucked down chute 12384 | -4/Factory | Entered Waste 12389 | -4/Waste | Spotted C-40 Crusher 12397 | -4/Waste | Spotted C-40 Crusher 12397 | -4/Waste | Spotted C-40 Crusher 12399 | -4/Waste | EMP discharged 12399 | -4/Waste | System corruption reached 10% 12401 | -4/Waste | Spotted C-40 Crusher 12403 | -4/Waste | Spotted C-40 Crusher 12414 | -4/Waste | Spotted C-40 Crusher 12418 | -4/Waste | Discovered new exit (range 10) 12425 | -4/Waste | Entered Factory 12500 | -4/Factory | Repaired Impulse Thruster Array 12523 | -4/Factory | Identified exit to DSF 12523 | -4/Factory | Entered DSF 12545 | -4/DSF | Additional patrols routed to DSF 12571 | -4/DSF | Discovered new exit (range 15) 12579 | -4/DSF | Entered Research 12579 | -3/Research | Evolved 2 slots: Utility x2 12610 | -3/Research | Identified exit to Garrison 12610 | -3/Research | Entered Garrison 12673 | -3/Garrison | Spotted B-86 Titan 12675 | -3/Garrison | Triggered checkpoint 12675 | -3/Garrison | Triggered checkpoint 12676 | -3/Garrison | Triggered checkpoint 12694 | -3/Garrison | Discovered new exit (range 10) 12698 | -3/Garrison | Entered Research 12698 | -2/Research | Evolved 2 slots: Propulsion x1, Utility x1 12717 | -2/Research | Identified exit to Garrison 12821 | -2/Research | Discovered new exit (range 15) 12853 | -2/Research | Build established: Hacker-Ninja 12936 | -2/Research | Identified exit to DSF 12936 | -2/Research | Entered DSF 12957 | -2/DSF | Additional patrols routed to DSF 12969 | -2/DSF | Found Adv. Powered Armor 12971 | -2/DSF | Found Adv. Powered Armor 13070 | -2/DSF | Discovered new exit (range 14) 13077 | -2/DSF | Entered Access 13077 | -1/Access | Evolved 2 slots: Propulsion x1, Weapon x1 13106 | -1/Access | Lost 6 parts (1p2u3w) 13129 | -1/Access | Identified exit to Command 13353 | -1/Access | Build established: Wizard-Ninja 13362 | -1/Access | Found Adv. Force Booster 13364 | -1/Access | Found Adv. Force Booster 13473 | -1/Access | Fabricated Femtoactuators (x1) 13505 | -1/Access | Fabricated Vibroblade (x1) 13601 | -1/Access | Entered Command 13713 | -1/Command | Disengaged cave seal 13815 | -1/Command | Spotted Combat Programmer 13908 | -1/Command | Spotted Combat Programmer 14033 | -1/Command | Spotted B-99 Colossus 14057 | -1/Command | Spotted Alpha 7 14057 | -1/Command | Spotted Striker 14057 | -1/Command | Spotted Executioner 14057 | -1/Command | Spotted Executioner 14057 | -1/Command | Spotted Alpha 7 14057 | -1/Command | Spotted Striker 14057 | -1/Command | Spotted Executioner 14057 | -1/Command | Spotted Executioner 14057 | -1/Command | Spotted B-99 Colossus 14063 | -1/Command | Spotted B-99 Colossus 14066 | -1/Command | Discovered new exit (range 9) 14067 | -1/Command | Core integrity fell below 50% 14073 | -1/Command | Core integrity fell below 20% 14073 | -1/Command | Destroyed by Executioner with Helical Railgun Last Messages --------------- 14072_ Slug penetrates B-99 Colossus. 14072_ Penetrated by Slug. 14072_ Slug penetrates B-99 Colossus. 14072_ Penetrated by Slug. 14072_ Slug penetrates Wall. 14072_ Penetrated by Slug. 14072_ Slug penetrates Wall. 14072_ Penetrated by Slug. 14072_ Slug penetrates Wall. 14072_ Knocked back. 14072_ Penetrated by Slug. 14072_ Slug penetrates Wall. 14072_ Penetrated by Slug. 14072_ Slug penetrates Wall. 14073_ Penetrated by Slug. 14073_ Slug penetrates Wall. 14073_ Slug penetrates Striker. 14073_ Field strength at 42. 14073_ Penetrated by Slug. 14073_ Slug penetrates Wall. Map ----- +----------------------------------------------------+ | ?# ########## ########/######??????? | | ?# ############+####### ######## ##??????????? | | ## ## ! #?????# #??????????? | | ## #?????# ?????????? | | ## #?????# ##?????????? | | # ### = #?????# #??????????? | | # #?# #????## ###########??????????? | | # #?# #????#" #????????????????????? | | # #?# #????#"+"++##???????????????????? | | # #?########"+###????#% % #???????????????????? | | # ###### % #??### % ##??????????????????? | | # ## "" #??#" %%^ 7 #??????????????????? | | # ## ## """" #??###% ^ ##??????????????????? | | # # """ #???# ^ % #??????????????????? | | # + """" #???## 7E E ##??????????????????? | | # # """" #???# E #??????????????????? | | # # #???## p ##??????????????????? | | # ! #! #???# K E^ #??????????????????? | | # ! =#?###;K^ ;###????????????????? | | ######+##"## %BB BB #????????????????? | | ##"####+###### #?### BB BB #????????????????? | | / / #??#;% ^ #????????????????? | | ########???# #????????????????? | | #??????????# #????????????????? | | #??????????# "" #????????????????? | | " #??????????# % @< #????????????????? | | #??????????# #????????????????? | | #??????????# ^ #????????????????? | | #??????????# #????????????????? | | #########??????????# #????????????????? | | ???????????????????# #????????????????? | | ???????????????????##############????????????????? | | ?????????????????????????????????????????????????? | | ?????????????????????????????????????????????????? | | ?????????????????????????????????????????????????? | | ?????????????????????????????????????????????????? | | ?????????????????????????????????????????????????? | | ?????????????????????????????????????????????????? | | ?????????????????????????????????????????????????? | | ?????????????????????????????????????????????????? | | ?????????????????????????????????????????????????? | | ?????????????????????????????????????????????????? | | ?????????????????????????????????????????????????? | | | | | | | | | | | | | | | +----------------------------------------------------+ Best States ------------- Heat Dissipation 58 Energy Generation 39 Energy Capacity 400 Matter Stores 300 Matter Capacity 300 Sight Range 16 Terrain Scan Range 24 Terrain Scan Density 210 Jamming Range 16 Additional Mass Support 9 Armor Coverage 375 Resistance: TH 10 Melee Speed Boost 50 Evasion (%) 76 Melee Accuracy 12 Core Analysis 8 Recoil Reduction 3 Force Boost 40 Offensive Hacking 60 Defensive Hacking 12 Relay Coupler Types 1 Relay Coupler Value 38 Authchip Count 3 Trap Extractor Capacity 4 Item Schematics ----------------- Huge Storage Unit | -9/Materials | Hacked VTOL Module | -9/Materials | Hacked Hcp. Storage Unit | -9/Materials | Hacked Hacking Suite | -9/Materials | Scanalyzed Cmb. Airjet | -9/Materials | Scanalyzed Mak. Spear | -9/Materials | Scanalyzed EMP Blaster | -9/Materials | Scanalyzed Imp. Flight Unit | -9/Materials | Scanalyzed Imp. Assault Rifle | -9/Materials | Scanalyzed Trap Extractor | -9/Materials | Scanalyzed Transport Network Coupler | -9/Materials | Scanalyzed Grenade Launcher | -9/Materials | Scanalyzed Med. Armor Plating | -9/Materials | Scanalyzed Adv. Weight Redist. System | -8/Materials | Hacked Imp. VTOL Module | -8/Materials | Scanalyzed Core Analyzer | -8/Materials | Scanalyzed Minigun | -8/Materials | Scanalyzed Surge Thruster | -8/Materials | Scanalyzed Cld. VTOL Module | -6/Factory | Hacked Adv. Weapon Cycler | -5/Factory | Hacked Com. HERF Cannon | -5/Factory | Hacked Quantum Capacitor | -4/Factory | Hacked Vibroblade | -4/Factory | Scanalyzed Adv. Actuator Array | -4/Factory | Hacked Adv. Hacking Suite | -4/Factory | Hacked Impulse Thruster Array | -4/Factory | Scanalyzed Exp. Core Analyzer | -4/Factory | Scanalyzed Adv. KE Penetrator | -4/Factory | Scanalyzed Imp. Plasma Cutter | -4/Factory | Extracted Hvy. Treads | -4/Factory | Extracted Imp. Coolant Injector | -4/Factory | Extracted Adv. Terrain Scan Processor | -4/Factory | Extracted Hvy. Reflective Plating | -4/Factory | Extracted Femtoactuators | -2/Research | Hacked Com. Battery | -1/Access | Extracted Adv. Powered Armor | -1/Access | Scanalyzed Imp. System Shield | -1/Access | Extracted Robot Schematics ------------------ None Fabricated ------------ Cld. VTOL Module | x1 | -6/Factory | Authchip Cld. VTOL Module | x1 | -5/Factory | Authchip Cld. VTOL Module | x1 | -5/Factory | Authchip Cld. VTOL Module | x1 | -5/Factory | Authchip Enh. Quantum Rifle | x2 | -5/Factory | Preloaded Adv. Hacking Suite | x1 | -4/Factory | Authchip Adv. Hacking Suite | x1 | -4/Factory | Authchip Femtoactuators | x1 | -1/Access | Authchip Vibroblade | x1 | -1/Access Repaired ---------- Imp. Treads | 1% | -9/Materials Cmb. Airjet | 96% | -8/Materials | Broken Med. Armor Plating | 1% | -8/Materials Impulse Thruster Array | 35% | -4/Factory Alien Tech Used ----------------- None Achievements -------------- None Challenges ------------ None Game ------ Seed GravjetSwordHarness Manual? 0 Play Time 04:29:02 Cumulative 822.2 hours Start 2025.08.21 @ 18:11:21 End 2025.08.22 @ 02:39:07 Sessions 1 Manual Loads 0 Difficulty Rogue Special Mode None Game No. 312 Rogue 308 Adventurer 4 Explorer 0 Win Type - Total 15 Types 9/1/1/1/0/1/0/0/1/1 Lore% 95 Gallery% 90 Achievement% 87 Wizard Run 0 Options --------- Layout 0 ASCII 0 Keyboard 0 Movement Numpad Keybinds 0 Fullscreen 2 Font 18/CogNarrow Map View 76x50 Zoom Use 0% Tactical HUD 1 Map Filters NONE Filters NONE Steam 1 RUN: 4c78dc18-c87d-4d1f-9647-4f63c564ba60